Workbook

Sheet БАЗА
A1: =COUNTA(БАЗА[№]) -> 131 | C1: ТОВАРА НА ДАННЫЙ МОМЕНТ = | D1: =SUM(БАЗА[В НАЛИЧИИ]) -> 197
A2: № | B2: ТОВАР | C2: ЦЕНА ЗАКУПКИ | D2: ЦЕНА | E2: В НАЛИЧИИ | F2: СУММА
A3: 1 | B3: БЛУЗА РЕШЕЛЬЕ | C3: =БАЗА[[#This Row],[ЦЕНА]]/2 -> 1050 | D3: 2100 | E3: 1 | F3: =E3*D3 -> 2100
A4: 2 | B4: БЛУЗА ШИТЬЁ | C4: =БАЗА[[#This Row],[ЦЕНА]]/2 -> 1550 | D4: 3100 | E4: 1 | F4: =E4*D4 -> 3100
A5: 3 | B5: БЛУЗА ШИТЬЁ ЧЁРНАЯ | C5: =БАЗА[[#This Row],[ЦЕНА]]/2 -> 1250 | D5: 2500 | E5: 1 | F5: =E5*D5 -> 2500
A6: 4 | B6: БЛУЗА ШИТЬЁ ПОД ДЖИНСУ | C6: =БАЗА[[#This Row],[ЦЕНА]]/2 -> 900 | D6: 1800 | E6: 1 | F6: 1800
A7: 5 | B7: БЛУЗА ШИТЬЁ ЧЁРНАЯ ИНДОНЕЗИЯ | C7: =БАЗА[[#This Row],[ЦЕНА]]/2 -> 1400 | D7: 2800 | E7: 4 | F7: 11200
A8: 6 | B8: БЛУЗА БЕЛАЯ ДЛИН РУКАВ ИНДОНЕЗИЯ | C8: =БАЗА[[#This Row],[ЦЕНА]]/2 -> 1250 | D8: 2500 | E8: 2 | F8: 5000
A9: 7 | B9: БЛУЗА БЕЛАЯ 0196 КОРЕЯ | C9: =БАЗА[[#This Row],[ЦЕНА]]/2 -> 1025 | D9: 2050 | E9: 3 | F9: 6150
A10: 8 | B10: БЛУЗА СИНИЯ 0196 КОРЕЯ | C10: 1025 | D10: 2050 | E10: 3 | F10: 6150
A11: 9 | B11: БЛУЗА ЖЕНСКАЯ 1158 КОРЕЯ | C11: =БАЗА[[#This Row],[ЦЕНА]]/2 -> 1050 | D11: 2100 | E11: 2 | F11: 4200
A12: 10 | B12: МАЙКА ВОЛНА ЧЕРНАЯ | C12: =БАЗА[[#This Row],[ЦЕНА]]/2 -> 525 | D12: 1050 | E12: 1 | F12: 1050
A13: 11 | B13: МАЙКА ВОЛНА БЕЛАЯ | C13: 525 | D13: 1050 | E13: 1 | F13: 1050
A14: 12 | B14: КОСТЮМ РЕШЕЛЬЕ | C14: =БАЗА[[#This Row],[ЦЕНА]]/2 -> 2050 | D14: 4100 | E14: 1 | F14: 4100
A15: 13 | B15: САРАФАН РИШЕЛЬЕ | C15: =БАЗА[[#This Row],[ЦЕНА]]/2 -> 1475 | D15: 2950 | E15: 1 | F15: 2950
A16: 14 | B16: ПЛАТЬЕ 167 | C16: =БАЗА[[#This Row],[ЦЕНА]]/2 -> 1550 | D16: 3100 | E16: 1 | F16: 3100
A17: 15 | B17: ПЛАТЬЕ 7328 ШИФОН ЦВЕТОК | C17: =БАЗА[[#This Row],[ЦЕНА]]/2 -> 1550 | D17: 3100 | E17: 1 | F17: 3100
A18: 16 | B18: ПЛАТЬЕ 2439 ШИФОН | C18: =БАЗА[[#This Row],[ЦЕНА]]/2 -> 1300 | D18: 2600 | E18: 1 | F18: 2600
A19: 17 | B19: ПЛАТЬЕ ЗЕЛЕНАЯ КЛЕТКА | C19: =БАЗА[[#This Row],[ЦЕНА]]/2 -> 1250 | D19: 2500 | E19: 1 | F19: 2500
A20: 18 | B20: ПЛАТЬЕ ТУРЦИЯ ШИФОН ДЛИН РУКАВ | C20: =БАЗА[[#This Row],[ЦЕНА]]/2 -> 1800 | D20: 3600 | E20: 1 | F20: 3600
A21: 19 | B21: ПЛАТЬЕ КОСТЮМ 2024 | C21: =БАЗА[[#This Row],[ЦЕНА]]/2 -> 3300 | D21: 6600 | E21: 1 | F21: 6600
A22: 20 | B22: ПЛАТЬЕ ПУГАЧЕВА | C22: =БАЗА[[#This Row],[ЦЕНА]]/2 -> 1900 | D22: 3800 | E22: 1 | F22: 3800
A23: 21 | B23: ПЛАТЬЕ 3017 КЛЮКВА | C23: =БАЗА[[#This Row],[ЦЕНА]]/2 -> 1250 | D23: 2500 | E23: 1 | F23: 2500
A24: 22 | B24: ПЛАТЬЕ ТАТЬЯНА | C24: =БАЗА[[#This Row],[ЦЕНА]]/2 -> 1250 | D24: 2500 | E24: 5 | F24: 12500
A25: 23 | B25: ПЛАТЬЕ 2006 АБСТРАКЦИЯ | C25: =БАЗА[[#This Row],[ЦЕНА]]/2 -> 1250 | D25: 2500 | E25: 1 | F25: 2500
A26: 24 | B26: ПЛАТЬЕ ВАЛАН 2816 СИНИЕ | C26: =БАЗА[[#This Row],[ЦЕНА]]/2 -> 975 | D26: 1950 | E26: 1 | F26: 1950
A27: 25 | B27: ПЛАТЬЕ ЖАТКА КОРЕЯ | C27: =БАЗА[[#This Row],[ЦЕНА]]/2 -> 1550 | D27: 3100 | E27: 1 | F27: 3100
A28: 26 | B28: ПЛАТЬЕ 3444 КОЛЬЦО | C28: =БАЗА[[#This Row],[ЦЕНА]]/2 -> 1250 | D28: 2500 | E28: 1 | F28: 2500
A29: 27 | B29: ПЛАТЬЕ КИРГИЗИЯ БЕЖ | C29: =БАЗА[[#This Row],[ЦЕНА]]/2 -> 475 | D29: 950 | E29: 2 | F29: 1900
A30: 28 | B30: ПЛАТЬЕ КИРГИЗИЯ ЗЕЛЕННОЕ | C30: =БАЗА[[#This Row],[ЦЕНА]]/2 -> 1250 | D30: 2500 | E30: 1 | F30: 2500
A31: 29 | B31: ПЛАТЬЕ САРАФАН СИНЕЕ 262 | C31: =БАЗА[[#This Row],[ЦЕНА]]/2 -> 1525 | D31: 3050 | E31: 1 | F31: 3050
A32: 30 | B32: ПЛАТЬЕ САКУРА | C32: =БАЗА[[#This Row],[ЦЕНА]]/2 -> 1675 | D32: 3350 | E32: 2 | F32: 6700
A33: 31 | B33: ПЛАТЬЕ АТЛАС ТУРЦИЯ | C33: =БАЗА[[#This Row],[ЦЕНА]]/2 -> 1900 | D33: 3800 | E33: 3 | F33: 11400
A34: 32 | B34: ПЛАТЬЕ 2040 ФУКСИЯ | C34: =БАЗА[[#This Row],[ЦЕНА]]/2 -> 1250 | D34: 2500 | E34: 1 | F34: 2500
A35: 33 | B35: ПЛАТЬЕ ВОЛНА ЧЕРНАЯ БЕЛАРУСЬ | C35: =БАЗА[[#This Row],[ЦЕНА]]/2 -> 1000 | D35: 2000 | E35: 1 | F35: 2000
A36: 34 | B36: КОСТЮМ БРЮЧНЫЙ | C36: =БАЗА[[#This Row],[ЦЕНА]]/2 -> 1125 | D36: 2250 | E36: 1 | F36: 2250
A37: 35 | B37: ЮБКА СЕРАЯ ШИФОН | C37: =БАЗА[[#This Row],[ЦЕНА]]/2 -> 750 | D37: 1500 | E37: 1 | F37: 1500
A38: 36 | B38: ЮБКА ЛЕТНЯЯ ШИФОН | C38: =БАЗА[[#This Row],[ЦЕНА]]/2 -> 625 | D38: 1250 | E38: 5 | F38: 6250
A39: 37 | B39: ЮБКА ЛЕТНЯЯ ХБ | C39: =БАЗА[[#This Row],[ЦЕНА]]/2 -> 575 | D39: 1150 | E39: 2 | F39: 2300
A40: 38 | B40: ЮБКА СТРЕЙЧ ЧЕРНАЯ | C40: =БАЗА[[#This Row],[ЦЕНА]]/2 -> 425 | D40: 850 | E40: 5 | F40: 4250
A41: 39 | B41: ЮБКА ТРИКОТАЖ ТУРЦИЯ БЕЛАЯ | C41: =БАЗА[[#This Row],[ЦЕНА]]/2 -> 600 | D41: 1200 | E41: 1 | F41: 1200
A42: 40 | B42: ЮБКА РЕШЕЛЬЕ ИНДОНЕЗИЯ | C42: =БАЗА[[#This Row],[ЦЕНА]]/2 -> 1050 | D42: 2100 | E42: 5 | F42: 10500
A43: 41 | B43: БЛУЗА НИФЕРТИТИ | C43: =БАЗА[[#This Row],[ЦЕНА]]/2 -> 750 | D43: 1500 | E43: 3 | F43: 4500
A44: 42 | B44: ФУТБОЛКА ЧЕРНАЯ, КРАСНАЯ | C44: =БАЗА[[#This Row],[ЦЕНА]]/2 -> 450 | D44: 900 | E44: 1 | F44: 900
A45: 43 | B45: ФУТБОЛКА ЖЕНСКАЯ | C45: 360 | D45: 720 | E45: 1 | F45: 720
A46: 44 | B46: БЛУЗА ЖЕНСКАЯ ТУРЦИЯ | C46: 225 | D46: 450 | E46: 2 | F46: 900
A47: 45 | B47: ФУТБОЛКА ЖЕНСКАЯ | C47: 410 | D47: 820 | E47: 1 | F47: 820
A48: 46 | B48: ВОДОЛАЗКА ТИГРОВАЯ | C48: =БАЗА[[#This Row],[ЦЕНА]]/2 -> 250 | D48: 500 | E48: 1 | F48: 500
A49: 47 | B49: МАЙКА КРАСНАЯ СТРАЗЫ | C49: =БАЗА[[#This Row],[ЦЕНА]]/2 -> 425 | D49: 850 | E49: 1 | F49: 850
A50: 48 | B50: ЖЕЛЕТКА ВЯЗАННАЯ | C50: =БАЗА[[#This Row],[ЦЕНА]]/2 -> 375 | D50: 750 | E50: 1 | F50: 750
A51: 49 | B51: БЛУЗА БЛЕСТЯЩАЯ | C51: =БАЗА[[#This Row],[ЦЕНА]]/2 -> 600 | D51: 1200 | E51: 2 | F51: 2400
A52: 50 | B52: БЛУЗА ТУРЦИЯ ПОЛОСКА 0555 | C52: =БАЗА[[#This Row],[ЦЕНА]]/2 -> 1000 | D52: 2000 | E52: 1 | F52: 2000
A53: 51 | B53: БЛУЗА РОЗА | C53: =БАЗА[[#This Row],[ЦЕНА]]/2 -> 550 | D53: 1100 | E53: 1 | F53: 1100
A54: 52 | B54: БЛУЗА ЧЕРНАЯ ДЛИННЫЙ РУКАВ | C54: =БАЗА[[#This Row],[ЦЕНА]]/2 -> 450 | D54: 900 | E54: 2 | F54: 1800
A55: 53 | B55: БЛУЗА ЦВЕТЫ ПОЛЬША | C55: =БАЗА[[#This Row],[ЦЕНА]]/2 -> 750 | D55: 1500 | E55: 4 | F55: 6000
A56: 54 | B56: БЛУЗА ПОЛОСКА КОРЕЯ | C56: =БАЗА[[#This Row],[ЦЕНА]]/2 -> 410 | D56: 820 | E56: 2 | F56: 1640
A57: 55 | B57: ДВОЙКА ГОРОХ ТЕМНЫЙ | C57: =БАЗА[[#This Row],[ЦЕНА]]/2 -> 500 | D57: 1000 | E57: 2 | F57: 2000
A58: 56 | B58: БЛУЗА ЧЕРНАЯ СЕРЕБРО | C58: =БАЗА[[#This Row],[ЦЕНА]]/2 -> 550 | D58: 1100 | E58: 1 | F58: 1100
A59: 57 | B59: ФУТБОЛКА КИРГИЗИЯ Р60 | C59: =БАЗА[[#This Row],[ЦЕНА]]/2 -> 425 | D59: 850 | E59: 1 | F59: 850
A60: 58 | B60: БЛУЗА ХОМУТ 2002 | C60: =БАЗА[[#This Row],[ЦЕНА]]/2 -> 1150 | D60: 2300 | E60: 1 | F60: 2300
A61: 59 | B61: БЛУЗА ЧЕРНАЯ ГИПЮР ТУРЦИЯ | C61: =БАЗА[[#This Row],[ЦЕНА]]/2 -> 925 | D61: 1850 | E61: 1 | F61: 1850
A62: 60 | B62: БЛУЗА БЕЛАЯ ГИПЮР КИРГИЗИЯ | C62: =БАЗА[[#This Row],[ЦЕНА]]/2 -> 250 | D62: 500 | E62: 1 | F62: 500
A63: 61 | B63: ПИДЖАК ТЕПЛЫЙ ИНДОНЕЗИЯ | C63: =БАЗА[[#This Row],[ЦЕНА]]/2 -> 1250 | D63: 2500 | E63: 2 | F63: 5000
A64: 62 | B64: ПИДЖАК ЛИНА | C64: =БАЗА[[#This Row],[ЦЕНА]]/2 -> 550 | D64: 1100 | E64: 1 | F64: 1100
A65: 63 | B65: ЖИЛЕТКА РАЯ | C65: =БАЗА[[#This Row],[ЦЕНА]]/2 -> 700 | D65: 1400 | E65: 1 | F65: 1400
A66: 64 | B66: БЛУЗА ВИСКОЗА БЕЛИЗ | C66: =БАЗА[[#This Row],[ЦЕНА]]/2 -> 325 | D66: 650 | E66: 1 | F66: 650
A67: 65 | B67: БЛУЗА КОПЮШОН 558 | C67: =БАЗА[[#This Row],[ЦЕНА]]/2 -> 1175 | D67: 2350 | E67: 2 | F67: 4700
A68: 66 | B68: МАЙКА ТЕРАКОТ ЛИНА | C68: =БАЗА[[#This Row],[ЦЕНА]]/2 -> 400 | D68: 800 | E68: 2 | F68: 1600
A69: 67 | B69: БЛУЗА 2194 | C69: =БАЗА[[#This Row],[ЦЕНА]]/2 -> 1150 | D69: 2300 | E69: 1 | F69: =E69*D69 -> 2300
A70: 68 | B70: ПОНЧО АЖУР | C70: =БАЗА[[#This Row],[ЦЕНА]]/2 -> 600 | D70: 1200 | E70: 2 | F70: 2400
A71: 69 | B71: ПОНЧО ШИФОН | C71: =БАЗА[[#This Row],[ЦЕНА]]/2 -> 625 | D71: 1250 | E71: 1 | F71: 1250
A72: 70 | B72: ВОДОЛАЗКА ШИФОН ЧЕРНАЯ | C72: 250 | D72: 500 | E72: 1 | F72: 500
A73: 71 | B73: ФУТБОЛКА ГОРОХ | C73: =БАЗА[[#This Row],[ЦЕНА]]/2 -> 250 | D73: 500 | E73: 1 | F73: 500
A74: 72 | B74: БЛУЗА ЛИНА | C74: =БАЗА[[#This Row],[ЦЕНА]]/2 -> 550 | D74: 1100 | E74: 1 | F74: 1100
A75: 73 | B75: БЛУЗА ТУРЦИЯ 2032 | C75: =БАЗА[[#This Row],[ЦЕНА]]/2 -> 750 | D75: 1500 | E75: 1 | F75: 1500
A76: 74 | B76: ТУНИКА 555 СИНЯЯ ПОЛОСКА | C76: =БАЗА[[#This Row],[ЦЕНА]]/2 -> 750 | D76: 1500 | E76: 4 | F76: 6000
A77: 75 | B77: ПИДЖАК ЗЕЛЕННЫЙ КИРГИЗИЯ | C77: 350 | D77: 700 | E77: 2 | F77: 1400
A78: 76 | B78: ПИДЖАК АЖУРНЫЙ КОРЕЯ | C78: =БАЗА[[#This Row],[ЦЕНА]]/2 -> 1250 | D78: 2500 | E78: 2 | F78: 5000
A79: 77 | B79: БЛУЗА ЛЕОПАРД | C79: =БАЗА[[#This Row],[ЦЕНА]]/2 -> 550 | D79: 1100 | E79: 1 | F79: 1100
A80: 78 | B80: БЛУЗА 253 КАПЮШОН КОРИЧНЕВЫЙ | C80: =БАЗА[[#This Row],[ЦЕНА]]/2 -> 1050 | D80: 2100 | E80: 1 | F80: 2100
A81: 79 | B81: ТУНИКА ТУРЦИЯ КЛЮКВА | C81: =БАЗА[[#This Row],[ЦЕНА]]/2 -> 1600 | D81: 3200 | E81: 1 | F81: 3200
A82: 80 | B82: КАПРИ КОРЕЯ | C82: =БАЗА[[#This Row],[ЦЕНА]]/2 -> 410 | D82: 820 | E82: 1 | F82: 820
A83: 81 | B83: БРЮКИ "НАОМИ" ЧЕРНЫЕ | C83: =БАЗА[[#This Row],[ЦЕНА]]/2 -> 750 | D83: 1500 | E83: 4 | F83: 6000
A84: 82 | B84: БРЮКИ ТУРЦИЯ "ЛЕНА" | C84: 450 | D84: 900 | E84: 2 | F84: 1800
A85: 83 | B85: КАРДИГАН ЧЕРНЫЙ АЖУР | C85: 410 | D85: 820 | E85: 1 | F85: 820
A86: 84 | B86: МАЙКА ФРЕНЧ | C86: =БАЗА[[#This Row],[ЦЕНА]]/2 -> 460 | D86: 920 | E86: 1 | F86: 920
A87: 85 | B87: БОЛЕРО ЧЕРНОЕ | C87: =БАЗА[[#This Row],[ЦЕНА]]/2 -> 325 | D87: 650 | E87: 1 | F87: 650
A88: 86 | B88: ТУНИКА ГАЗЕТА ТУРЦИЯ | C88: =БАЗА[[#This Row],[ЦЕНА]]/2 -> 1175 | D88: 2350 | E88: 3 | F88: 7050
A89: 87 | B89: БЛУЗА ПОЕТКИ ДЛИН РУКАВ | C89: =БАЗА[[#This Row],[ЦЕНА]]/2 -> 500 | D89: 1000 | E89: 1 | F89: 1000
A90: 88 | B90: ПЛАТЬЕ БЛЕСК | C90: =БАЗА[[#This Row],[ЦЕНА]]/2 -> 1525 | D90: 3050 | E90: 2 | F90: 6100
A91: 89 | B91: БЛУЗА 2020 ВИШНЯ ШИФОН | C91: =БАЗА[[#This Row],[ЦЕНА]]/2 -> 1350 | D91: 2700 | E91: 1 | F91: 2700
A92: 90 | B92: БЛУЗА ПОД ДЖИНСУ | C92: =БАЗА[[#This Row],[ЦЕНА]]/2 -> 750 | D92: 1500 | E92: 1 | F92: 1500
A93: 91 | B93: БЛУЗА 723 | C93: =БАЗА[[#This Row],[ЦЕНА]]/2 -> 1100 | D93: 2200 | E93: 1 | F93: 2200
A94: 92 | B94: ДВОЙКА ЖЕЛТАЯ МАРЛЕВКА | C94: =БАЗА[[#This Row],[ЦЕНА]]/2 -> 375 | D94: 750 | E94: 1 | F94: 750
A95: 93 | B95: БЛУЗА ДЛИН РУКАВ | C95: =БАЗА[[#This Row],[ЦЕНА]]/2 -> 925 | D95: 1850 | E95: 1 | F95: 1850
A96: 94 | B96: ФУТБОЛКА СТРЕЙЧ КАМЕШКИ | C96: =БАЗА[[#This Row],[ЦЕНА]]/2 -> 300 | D96: 600 | E96: 1 | F96: 600
A97: 95 | B97: БЛУЗА ШАХМАТЫ | C97: =БАЗА[[#This Row],[ЦЕНА]]/2 -> 775 | D97: 1550 | E97: 1 | F97: 1550
A98: 96 | B98: БЛУЗА ГОБИЛЕН | C98: =БАЗА[[#This Row],[ЦЕНА]]/2 -> 650 | D98: 1300 | E98: 1 | F98: 1300
A99: 97 | B99: БЛУЗА ЛУГ | C99: =БАЗА[[#This Row],[ЦЕНА]]/2 -> 925 | D99: 1850 | E99: 3 | F99: 5550
A100: 98 | B100: БЛУЗА СЕРАЯ МОСКВА | C100: 700 | D100: 1400 | E100: 1 | F100: 1400
A101: 99 | B101: ДВОЙКА ШИФОН | C101: =БАЗА[[#This Row],[ЦЕНА]]/2 -> 825 | D101: 1650 | E101: 1 | F101: 1650
A102: 100 | B102: КОМБИНИЗОН | C102: =БАЗА[[#This Row],[ЦЕНА]]/2 -> 1250 | D102: 2500 | E102: 2 | F102: 5000
A103: 101 | B103: БЛУЗА БАБОЧКА ЧЕРНАЯ | C103: =БАЗА[[#This Row],[ЦЕНА]]/2 -> 775 | D103: 1550 | E103: 1 | F103: 1550
A104: 102 | B104: БЛУЗА ИНДИАНО | C104: =БАЗА[[#This Row],[ЦЕНА]]/2 -> 725 | D104: 1450 | E104: 1 | F104: 1450
A105: 103 | B105: БЛУЗА МАКИ | C105: =БАЗА[[#This Row],[ЦЕНА]]/2 -> 1250 | D105: 2500 | E105: 3 | F105: 7500
A106: 104 | B106: БЛУЗА ШИФОН 3/4 3032 | C106: =БАЗА[[#This Row],[ЦЕНА]]/2 -> 1400 | D106: 2800 | E106: 1 | F106: 2800
A107: 105 | B107: МАЙКА АБСТРАКЦИЯ | C107: =БАЗА[[#This Row],[ЦЕНА]]/2 -> 325 | D107: 650 | E107: 1 | F107: 650
A108: 106 | B108: МАЙКА ШИФОН КРАСНАЯ | C108: =БАЗА[[#This Row],[ЦЕНА]]/2 -> 250 | D108: 500 | E108: 1 | F108: 500
A109: 107 | B109: БЛУЗА ВОЛНА | C109: =БАЗА[[#This Row],[ЦЕНА]]/2 -> 525 | D109: 1050 | E109: 1 | F109: 1050
A110: 108 | B110: МАЙКА КРЫЛО ШИФОН | C110: =БАЗА[[#This Row],[ЦЕНА]]/2 -> 525 | D110: 1050 | E110: 2 | F110: 2100
A111: 109 | B111: БЛУЗА ГАЗЕТА ВОРОТНИК | C111: =БАЗА[[#This Row],[ЦЕНА]]/2 -> 600 | D111: 1200 | E111: 1 | F111: 1200
A112: 110 | B112: ДВОЙКА КОРЕЯ КЛЮКВА | C112: =БАЗА[[#This Row],[ЦЕНА]]/2 -> 1050 | D112: 2100 | E112: 1 | F112: 2100
A113: 111 | B113: БЛУЗА ТЕРАКОТ | C113: =БАЗА[[#This Row],[ЦЕНА]]/2 -> 500 | D113: 1000 | E113: 2 | F113: 2000
A114: 112 | B114: ТУНИКА КИРГИЗИЯ ЯРКАЯ | C114: =БАЗА[[#This Row],[ЦЕНА]]/2 -> 650 | D114: 1300 | E114: 1 | F114: 1300
A115: 113 | B115: БЛУЗА КИРГИЗИЯ ДЛИН РУКАВ | C115: =БАЗА[[#This Row],[ЦЕНА]]/2 -> 450 | D115: 900 | E115: 1 | F115: 900
A116: 114 | B116: БЛУЗА КОРЕЯ ПОЛОСКА | C116: =БАЗА[[#This Row],[ЦЕНА]]/2 -> 1250 | D116: 2500 | E116: 4 | F116: 10000
A117: 115 | B117: ТУНИКА ШИФОН | C117: =БАЗА[[#This Row],[ЦЕНА]]/2 -> 900 | D117: 1800 | E117: 1 | F117: 1800
A118: 116 | B118: БЛУЗА ДЛИН РУКАВ ЗЕБРА | C118: =БАЗА[[#This Row],[ЦЕНА]]/2 -> 900 | D118: 1800 | E118: 1 | F118: 1800
A119: 117 | B119: ДВОЙКА КИРГИЗИЯ | C119: =БАЗА[[#This Row],[ЦЕНА]]/2 -> 750 | D119: 1500 | E119: 1 | F119: 1500
A120: 118 | B120: БЛУЗА ЗЕЛЕННАЯ ДЛИН РУКАВ ТУРЦИЯ | C120: 500 | D120: 1000 | E120: 0 | F120: 0
A121: 119 | B121: БЛУЗА СЕРАЯ ДЛИН РУКАВ | C121: =БАЗА[[#This Row],[ЦЕНА]]/2 -> 450 | D121: 900 | E121: 1 | F121: 900
A122: 120 | B122: БЛУЗА 4924 ТУРЦИЯ ПОЛОСКА | C122: =БАЗА[[#This Row],[ЦЕНА]]/2 -> 1100 | D122: 2200 | E122: 1 | F122: 2200
A123: 121 | B123: ТУНИКА ТЕПЛАЯ ТУРЦИЯ | C123: 1025 | D123: 2050 | E123: 2 | F123: 4100
A124: 122 | B124: ПЛАТЬЕ НА НОЖКЕ СЕРАЯ ТУРЦИЯ | C124: 1600 | D124: 3200 | E124: 0 | F124: 0
A125: 123 | B125: БЛУЗА СЕТКА | C125: 400 | D125: 800 | E125: 0 | F125: 0
A126: 124 | B126: ПОЯС КОРЕКЦИЯ | C126: 200 | D126: 400 | E126: 0 | F126: 0
A127: 125 | B127: БУСЫ | C127: 250 | D127: 500 | E127: 0 | F127: 0
A128: 126 | B128: ПЛАТЬЕ 1227 ТУРЦИЯ КЛЮКВА | C128: 1650 | D128: 3300 | E128: 4 | F128: 13200
A129: 127 | B129: БРЮКИ КАДРЭ | C129: 550 | D129: 1100 | E129: 1 | F129: 1100
A130: 128 | B130: ЮБКА СТРЕЙЧ ЧЁРНАЯ ГИГАНТ | C130: 475 | D130: 950 | E130: 0 | F130: 0
A131: 129 | B131: БЛУЗА ПОЛОСКА КИРГИЗИЯ Р 62 | C131: 460 | D131: 920 | E131: 0 | F131: 0
A132: 130 | B132: ПЛАТЬЕ -КОСТЮМ ТУРЦИЯ | C132: 2750 | D132: 5500 | E132: 4 | F132: 22000
A133: 131 | B133: ПЛАТЬЕ-КОСТЮМ (АЛЕКСАНДРА) | C133: 1125 | D133: 2250 | E133: 1 | F133: =E133*D133 -> 2250

Sheet Журнал МАКСИМУМ
A2: ДАТА | B2: № | C2: НАИМЕНОВАНИЕ | D2: ПРИХОД | E2: ПРОДАНО | F2: ЦЕНА | G2: СКИДКА | H2: СУММА | I2: ПРИБЫЛЬ | J2: ПЕРЕМЕЩЕНИЕ | K2: ОСТАТОК | L2: ВОЗВРАТ
A3: 22.08.2011 | B3: 121 | C3: ТУНИКА ТЕПЛАЯ ТУРЦИЯ | D3: 1 | E3: 0 | F3: 2050 | G3: 0 | H3: 0 | I3: 0 | J3: 0 | K3: 2 | L3: 0
A4: 23.08.2011 | B4: 122 | C4: ПЛАТЬЕ НА НОЖКЕ СЕРАЯ ТУРЦИЯ | D4: 0 | E4: 1 | F4: 3200 | G4: 0 | H4: 3200 | I4: 1600 | J4: 0 | K4: 0 | L4: 0
A5: 22.08.2011 | B5: 123 | C5: БЛУЗА СЕТКА | D5: 0 | E5: 1 | F5: 800 | G5: 50 | H5: 750 | I5: 350 | J5: 0 | K5: 0 | L5: 0
A6: 22.08.2011 | B6: 124 | C6: ПОЯС КОРЕКЦИЯ | D6: 0 | E6: 0 | F6: 400 | G6: 0 | H6: 0 | I6: 0 | J6: 1 | K6: 0 | L6: 0
A7: 23.08.2011 | B7: 125 | C7: БУСЫ | D7: 0 | E7: 1 | F7: 500 | G7: 100 | H7: 400 | I7: 150 | J7: 0 | K7: 0 | L7: 0
A8: 22.08.2011 | B8: 126 | C8: ПЛАТЬЕ 1227 ТУРЦИЯ КЛЮКВА | D8: 4 | E8: 0 | F8: 3300 | G8: 0 | H8: 0 | I8: 0 | J8: 1 | K8: 4 | L8: 0
A9: 23.08.2011 | B9: 127 | C9: БРЮКИ КАДРЭ | D9: 1 | E9: 1 | F9: 1100 | G9: 0 | H9: 1100 | I9: 550 | J9: 0 | K9: 1 | L9: 0
A10: 24.08.2011 | B10: 128 | C10: ЮБКА СТРЕЙЧ ЧЁРНАЯ ГИГАНТ | D10: 0 | E10: 1 | F10: 950 | G10: 0 | H10: 950 | I10: 475 | J10: 0 | K10: 0 | L10: 0
A11: 24.08.2011 | B11: 118 | C11: БЛУЗА ЗЕЛЕННАЯ ДЛИН РУКАВ ТУРЦИЯ | D11: 0 | E11: 1 | F11: 1000 | G11: 0 | H11: 1000 | I11: 500 | J11: 0 | K11: 0 | L11: 0

Sheet ОТЧЕТ
A1: ДАТА | B1: (Все)
A3: № | B3: НАИМЕНОВАНИЕ | C3: ПРИХОД | D3: ПРОДАНО | E3: ОСТАТОК
A4: 118 | B4: БЛУЗА ЗЕЛЕННАЯ ДЛИН РУКАВ ТУРЦИЯ | C4: 0 | D4: 1 | E4: 0
A5: 121 | B5: ТУНИКА ТЕПЛАЯ ТУРЦИЯ | C5: 1 | D5: 0 | E5: 2
A6: 122 | B6: ПЛАТЬЕ НА НОЖКЕ СЕРАЯ ТУРЦИЯ | C6: 0 | D6: 1 | E6: 0
A7: 123 | B7: БЛУЗА СЕТКА | C7: 0 | D7: 1 | E7: 0
A8: 124 | B8: ПОЯС КОРЕКЦИЯ | C8: 0 | D8: 0 | E8: 0
A9: 125 | B9: БУСЫ | C9: 0 | D9: 1 | E9: 0
A10: 126 | B10: ПЛАТЬЕ 1227 ТУРЦИЯ КЛЮКВА | C10: 4 | D10: 0 | E10: 4
A11: 127 | B11: БРЮКИ КАДРЭ | C11: 1 | D11: 1 | E11: 1
A12: 128 | B12: ЮБКА СТРЕЙЧ ЧЁРНАЯ ГИГАНТ | C12: 0 | D12: 1 | E12: 0
A13: Общий итог | C13: 6 | D13: 6 | E13: 7
